[Event "3rd Memorial Warakomska 2019"]
[Site "Suwalki"]
[Date "2019.08.09"]
[Round "6.9"]
[White "Caspi, Israel"]
[Black "Pavlov, Sergey"]
[Result "1-0"]
[ECO "C45"]
[WhiteElo "2458"]
[BlackElo "2486"]
[Annotator "ChessBase"]
[PlyCount "135"]
[EventDate "2019.08.05"]
[EventType "swiss"]
[EventCountry "POL"]
[SourceTitle "playchess.com"]
[Source "ChessBase"]
[SourceQuality "1"]
[TimeControl "40/5400+30:1800+30"]

1. e4 {[%emt 0:00:00]} e5 {[%emt 0:00:05]} 2. Nf3 {[%emt 0:00:00]} Nc6 {[%emt 0:00:16]} 3. d4 {[%emt 0:00:01]} exd4 {[%emt 0:00:20]} 4. Nxd4 {[%emt 0:00:03]} Bc5 {[%emt 0:00:27]} 5. Nb3 {[%emt 0:00:10]} Bb4+ {[%emt 0:00:46]} 6. c3 {[%emt 0:00:51]} Be7 {[%emt 0:00:19]} 7. Bf4 {[%emt 0:00:36]} d6 {[%emt 0:01:11]} 8. N1d2 {[%emt 0:01:19]} Bg5 {[%emt 0:02:18]} 9. Bxg5 {[%emt 0:06:51]} Qxg5 {[%emt 0:00:15]} 10. g3 {[%emt 0:00:08]} Bg4 {[%emt 0:07:36]} 11. Be2 {[%emt 0:14:09]} Nf6 {[%emt 0:10:21]} 12. f3 {[%emt 0:07:24]} Bh3 {[%emt 0:05:59]} 13. f4 {[%emt 0:09:23]} Qg6 {[%emt 0:01:47]} 14. Bf3 {[%emt 0:02:52]} d5 {[%emt 0:26:53]} 15. e5 {[%emt 0:05:55]} Ne4 {[%emt 0:02:51]} 16. Qe2 {[%emt 0:00:40]} Nxd2 {[%emt 0:05:30]} 17. Qxd2 {[%emt 0:02:04]} O-O-O {[%emt 0:01:09]} 18. O-O-O {[%emt 0:04:09]} f6 {[%emt 0:01:55]} 19. exf6 {[%emt 0:01:48]} Qxf6 {[%emt 0:00:27]} 20. Rhe1 {[%emt 0:00:29]} g5 {[%emt 0:04:11]} 21. Qe3 {[%emt 0:10:44]} gxf4 {[%emt 0:03:36]} 22. Qxf4 {[%emt 0:04:20]} Qxf4+ {[%emt 0:01:39]} 23. gxf4 {[%emt 0:00:05]} Rhf8 {[%emt 0:00:47]} 24. Bxd5 {[%emt 0:02:26]} Rxf4 {[%emt 0:01:52]} 25. Rd2 {[%emt 0:05:10]} Rf6 {[%emt 0:06:12]} 26. Nc5 {[%emt 0:10:48]} Rdf8 {[%emt 0:02:04]} 27. b4 {[%emt 0:01:43]} Rf1 {[%emt 0:06:25]} 28. Rxf1 {[%emt 0:00:51]} Rxf1+ {[%emt 0:00:06]} 29. Kb2 {[%emt 0:00:11]} Nd8 {[%emt 0:00:37]} 30. Bc4 {[%emt 0:04:20]} Rf4 {[%emt 0:02:42]} 31. Kb3 {[%emt 0:00:40]} c6 {[%emt 0:01:25]} 32. a4 {[%emt 0:01:45]} Bf5 {[%emt 0:02:01]} 33. Bd3 {[%emt 0:02:13]} b6 {[%emt 0:01:00]} 34. Bxf5+ {[%emt 0:00:34]} Rxf5 {[%emt 0:00:04]} 35. Ne4 {[%emt 0:00:21]} Kc7 {[%emt 0:01:15]} 36. Nd6 {[%emt 0:01:08]} Re5 {[%emt 0:00:57]} 37. Nc4 {[%emt 0:00:16]} Re7 {[%emt 0:00:29]} 38. Rg2 {[%emt 0:00:10]} Ne6 {[%emt 0:00:30]} 39. Rg8 {[%emt 0:00:32]} Nf4 {[%emt 0:00:33]} 40. Ra8 {[%emt 0:00:00]} Kb7 {[%emt 0:00:00]} 41. Rf8 {[%emt 0:05:07]} Nd5 {[%emt 0:04:27]} 42. Nd6+ {[%emt 0:01:19]} Kc7 {[%emt 0:00:09]} 43. Nf5 {[%emt 0:00:10]} Rd7 {[%emt 0:00:30]} 44. Kc4 {[%emt 0:03:02]} a6 {[%emt 0:04:22]} 45. a5 {[%emt 0:06:22]} b5+ {[%emt 0:10:30]} 46. Kb3 {[%emt 0:00:14]} c5 {[%emt 0:00:21]} 47. bxc5 {[%emt 0:01:48]} Kc6 {[%emt 0:00:05]} 48. c4 {[%emt 0:05:47]} Ne7 {[%emt 0:04:59]} 49. Kb4 {[%emt 0:04:02]} Nxf5 {[%emt 0:05:00]} 50. cxb5+ {[%emt 0:00:36]} axb5 {[%emt 0:00:14]} 51. Rf6+ {[%emt 0:00:11]} Kc7 {[%emt 0:00:18]} 52. Rxf5 {[%emt 0:00:10]} Rd2 {[%emt 0:00:09]} 53. Rf7+ {[%emt 0:01:45]} Kc6 {[%emt 0:00:06]} 54. Rf6+ {[%emt 0:00:10]} Kc7 {[%emt 0:00:05]} 55. Rh6 {[%emt 0:00:18]} Rb2+ {[%emt 0:00:17]} 56. Kc3 {[%emt 0:01:07]} Ra2 {[%emt 0:00:21]} 57. a6 {[%emt 0:01:12]} Ra4 {[%emt 0:00:17]} 58. Kb3 {[%emt 0:01:23]} Rc4 {[%emt 0:01:30]} 59. Rxh7+ {[%emt 0:03:13]} Kc6 {[%emt 0:02:51]} 60. a7 {[%emt 0:00:06]} Ra4 {[%emt 0:00:03]} 61. h4 {[%emt 0:00:49]} Kxc5 {[%emt 0:00:13]} 62. h5 {[%emt 0:01:13]} Rb4+ {[%emt 0:00:36]} 63. Kc3 {[%emt 0:00:13]} Rc4+ {[%emt 0:00:16]} 64. Kd3 {[%emt 0:00:05]} Rd4+ {[%emt 0:00:25]} 65. Ke3 {[%emt 0:00:05]} Ra4 {[%emt 0:00:30]} 66. h6 {[%emt 0:01:54]} b4 {[%emt 0:00:11]} 67. Kd3 {[%emt 0:00:44]} Ra3+ {[%emt 0:01:35]} 68. Kc2 {[%emt 0:00:07]} 1-0

[Event "3rd Memorial Warakomska 2019"]
[Site "Suwalki"]
[Date "2019.08.09"]
[Round "6.10"]
[White "Tihonov, Jurij"]
[Black "Janik, Igor"]
[Result "1-0"]
[ECO "A28"]
[WhiteElo "2393"]
[BlackElo "2495"]
[Annotator "ChessBase"]
[PlyCount "109"]
[EventDate "2019.08.05"]
[EventType "swiss"]
[EventCountry "POL"]
[SourceTitle "playchess.com"]
[Source "ChessBase"]
[SourceQuality "1"]
[TimeControl "40/5400+30:1800+30"]

1. c4 {[%emt 0:00:00]} e5 {[%emt 0:00:00]} 2. Nc3 {[%emt 0:00:00]} Nf6 {[%emt 0:00:07]} 3. Nf3 {[%emt 0:00:15]} Nc6 {[%emt 0:00:10]} 4. e4 {[%emt 0:00:17]} d6 {[%emt 0:01:44]} 5. d4 {[%emt 0:01:02]} Bg4 {[%emt 0:00:40]} 6. d5 {[%emt 0:00:55]} Nd4 {[%emt 0:00:12]} 7. Be2 {[%emt 0:02:44]} Bxf3 {[%emt 0:00:42]} 8. Bxf3 {[%emt 0:00:21]} c5 {[%emt 0:00:11]} 9. dxc6 {[%emt 0:00:45]} bxc6 {[%emt 0:00:15]} 10. Be3 {[%emt 0:05:14]} c5 {[%emt 0:02:05]} 11. O-O {[%emt 0:01:15]} Be7 {[%emt 0:02:04]} 12. Be2 {[%emt 0:05:17]} O-O {[%emt 0:01:49]} 13. Bd3 {[%emt 0:00:12]} Rb8 {[%emt 0:03:45]} 14. Rb1 {[%emt 0:03:51]} Qa5 {[%emt 0:01:26]} 15. Kh1 {[%emt 0:03:53]} Rb7 {[%emt 0:00:26]} 16. Bd2 {[%emt 0:03:24]} Rfb8 {[%emt 0:04:37]} 17. b3 {[%emt 0:02:08]} Qd8 {[%emt 0:00:49]} 18. g3 {[%emt 0:01:06]} Qd7 {[%emt 0:01:16]} 19. Kg2 {[%emt 0:01:36]} Bd8 {[%emt 0:00:26]} 20. Be3 {[%emt 0:17:13]} Ba5 {[%emt 0:03:13]} 21. Nb5 {[%emt 0:11:21]} Qc6 {[%emt 0:05:22]} 22. f3 {[%emt 0:03:03]} a6 {[%emt 0:00:54]} 23. Na3 {[%emt 0:02:43]} h6 {[%emt 0:07:41]} 24. h4 {[%emt 0:02:56]} Bb4 {[%emt 0:02:11]} 25. Nc2 {[%emt 0:00:20]} Bc3 {[%emt 0:00:13]} 26. Bc1 {[%emt 0:04:14]} Qc7 {[%emt 0:08:29]} 27. Rf2 {[%emt 0:01:19]} Qa5 {[%emt 0:02:52]} 28. Ne3 {[%emt 0:03:32]} Re8 {[%emt 0:02:34]} 29. Nf5 {[%emt 0:04:19]} Rd7 {[%emt 0:00:32]} 30. Nxd4 {[%emt 0:01:30]} cxd4 {[%emt 0:01:03]} 31. a3 {[%emt 0:00:54]} Rb8 {[%emt 0:03:38]} 32. b4 {[%emt 0:00:29]} Qd8 {[%emt 0:00:37]} 33. f4 {[%emt 0:00:34]} a5 {[%emt 0:01:09]} 34. fxe5 {[%emt 0:02:29]} dxe5 {[%emt 0:00:20]} 35. Qf3 {[%emt 0:02:01]} Ne8 {[%emt 0:10:57]} 36. c5 {[%emt 0:01:14]} axb4 {[%emt 0:00:37]} 37. Bc4 {[%emt 0:04:47]} Qc7 {[%emt 0:00:40]} 38. axb4 {[%emt 0:02:40]} Rxb4 {[%emt 0:00:34]} 39. Rxb4 {[%emt 0:00:08]} Bxb4 {[%emt 0:00:05]} 40. c6 {[%emt 0:00:00]} Re7 {[%emt 0:00:00]} 41. Qb3 {[%emt 0:14:08]} Bd6 {[%emt 0:05:09]} 42. Bd5 {[%emt 0:00:15]} Nf6 {[%emt 0:01:53]} 43. Rxf6 {[%emt 0:00:40]} gxf6 {[%emt 0:00:19]} 44. Qf3 {[%emt 0:00:11]} Qc8 {[%emt 0:03:47]} 45. Qh5 {[%emt 0:03:57]} Re6 {[%emt 0:01:26]} 46. Bxh6 {[%emt 0:02:57]} Bf8 {[%emt 0:00:10]} 47. Qg4+ {[%emt 0:04:43]} Kh8 {[%emt 0:01:36]} 48. Bxe6 {[%emt 0:02:12]} fxe6 {[%emt 0:00:07]} 49. Bxf8 Qxf8 {[%emt 0:00:01]} 50. Qxe6 {[%emt 0:00:18]} Qd8 {[%emt 0:00:12]} 51. Qd7 {[%emt 0:00:40]} Qa8 {[%emt 0:00:01]} 52. Kh3 {[%emt 0:03:19]} Qa1 {[%emt 0:00:02]} 53. c7 {[%emt 0:01:32]} Qh1+ {[%emt 0:00:04]} 54. Kg4 {[%emt 0:00:04]} Qxe4+ {[%emt 0:00:04]} 55. Kh5 {[%emt 0:00:09]} 1-0

[Event "3rd Memorial Warakomska 2019"]
[Site "Suwalki"]
[Date "2019.08.09"]
[Round "6.11"]
[White "Karthik Venkataraman"]
[Black "Szpar, Milosz"]
[Result "1-0"]
[ECO "E12"]
[WhiteElo "2480"]
[BlackElo "2289"]
[Annotator "ChessBase"]
[PlyCount "155"]
[EventDate "2019.08.05"]
[EventType "swiss"]
[EventCountry "POL"]
[SourceTitle "playchess.com"]
[Source "ChessBase"]
[SourceQuality "1"]
[TimeControl "40/5400+30:1800+30"]

1. d4 {[%emt 0:00:00]} Nf6 {[%emt 0:00:00]} 2. c4 {[%emt 0:00:00]} e6 {[%emt 0:00:00]} 3. Nf3 {[%emt 0:00:00]} b6 {[%emt 0:00:20]} 4. a3 {[%emt 0:00:00]} Bb7 {[%emt 0:00:31]} 5. Nc3 {[%emt 0:00:00]} d5 {[%emt 0:00:23]} 6. Bg5 {[%emt 0:00:14]} Be7 {[%emt 0:05:05]} 7. Qa4+ {[%emt 0:00:12]} Nbd7 {[%emt 0:15:28]} 8. Ne5 {[%emt 0:05:30]} O-O {[%emt 0:01:08]} 9. Nc6 {[%emt 0:02:50]} Qe8 {[%emt 0:00:16]} 10. Nxe7+ {[%emt 0:02:37]} Qxe7 {[%emt 0:00:04]} 11. e3 {[%emt 0:00:05]} dxc4 {[%emt 0:00:51]} 12. Qxc4 {[%emt 0:01:59]} c5 {[%emt 0:06:12]} 13. f3 {[%emt 0:06:44]} cxd4 {[%emt 0:08:34]} 14. Qxd4 {[%emt 0:01:00]} h6 {[%emt 0:07:21]} 15. Bh4 {[%emt 0:00:28]} Nc5 {[%emt 0:00:31]} 16. Bxf6 {[%emt 0:00:51]} Qxf6 {[%emt 0:05:04]} 17. Qxf6 {[%emt 0:00:07]} gxf6 {[%emt 0:00:04]} 18. Rd1 {[%emt 0:01:24]} Rfd8 {[%emt 0:02:17]} 19. Be2 {[%emt 0:00:06]} f5 {[%emt 0:01:11]} 20. Kf2 {[%emt 0:00:27]} Bc6 {[%emt 0:05:42]} 21. Rd4 {[%emt 0:05:08]} Rxd4 {[%emt 0:10:50]} 22. exd4 {[%emt 0:00:16]} Na4 {[%emt 0:04:27]} 23. Nxa4 {[%emt 0:01:34]} Bxa4 {[%emt 0:00:07]} 24. Rc1 {[%emt 0:00:04]} Rd8 {[%emt 0:01:14]} 25. Ke3 {[%emt 0:00:06]} Rd6 {[%emt 0:05:51]} 26. Rc8+ {[%emt 0:01:13]} Kg7 {[%emt 0:00:22]} 27. Ba6 {[%emt 0:06:52]} Rc6 {[%emt 0:08:09]} 28. d5 {[%emt 0:00:11]} Rd6 {[%emt 0:03:41]} 29. Rc7 {[%emt 0:09:55]} Rxd5 {[%emt 0:04:41]} 30. Rxa7 {[%emt 0:00:06]} Rc5 {[%emt 0:00:54]} 31. Bd3 {[%emt 0:00:51]} Bb3 {[%emt 0:01:57]} 32. Rb7 {[%emt 0:00:40]} Rc6 {[%emt 0:00:12]} 33. Bb5 {[%emt 0:00:25]} Rd6 {[%emt 0:01:02]} 34. g3 {[%emt 0:09:31]} Kf6 {[%emt 0:00:15]} 35. f4 {[%emt 0:00:49]} e5 {[%emt 0:01:59]} 36. fxe5+ {[%emt 0:00:08]} Kxe5 {[%emt 0:00:01]} 37. a4 {[%emt 0:01:50]} h5 {[%emt 0:00:17]} 38. Be8 {[%emt 0:00:34]} Bc4 {[%emt 0:00:48]} 39. Rd7 {[%emt 0:00:39]} Rh6 {[%emt 0:01:08]} 40. Bxf7 {[%emt 0:00:00]} Bxf7 {[%emt 0:00:00]} 41. Rxf7 {[%emt 0:05:44]} h4 {[%emt 0:00:55]} 42. Re7+ {[%emt 0:00:04]} Kd6 {[%emt 0:04:51]} 43. Rb7 {[%emt 0:00:07]} Ke5 {[%emt 0:00:47]} 44. Rb8 {[%emt 0:10:45]} hxg3 {[%emt 0:01:45]} 45. hxg3 {[%emt 0:00:17]} Rg6 {[%emt 0:01:13]} 46. Kf3 {[%emt 0:00:44]} Rg4 {[%emt 0:01:24]} 47. b3 {[%emt 0:02:03]} Rb4 {[%emt 0:02:17]} 48. Re8+ {[%emt 0:00:05]} Kd5 {[%emt 0:01:33]} 49. Re3 {[%emt 0:00:09]} Rg4 {[%emt 0:05:06]} 50. Rd3+ {[%emt 0:00:37]} Kc5 {[%emt 0:02:35]} 51. Re3 {[%emt 0:00:57]} Kd5 {[%emt 0:00:51]} 52. Rc3 {[%emt 0:00:07]} Re4 {[%emt 0:02:01]} 53. Kf2 {[%emt 0:01:39]} Rg4 {[%emt 0:03:06]} 54. Rf3 {[%emt 0:00:45]} Ke5 {[%emt 0:03:26]} 55. Ke2 {[%emt 0:00:19]} Rd4 {[%emt 0:01:26]} 56. Re3+ {[%emt 0:03:32]} Kf6 {[%emt 0:00:31]} 57. Rd3 {[%emt 0:00:15]} Rb4 {[%emt 0:00:26]} 58. Kd2 {[%emt 0:00:20]} Ke5 {[%emt 0:00:18]} 59. Re3+ {[%emt 0:02:57]} Kd5 {[%emt 0:00:08]} 60. Kc3 {[%emt 0:01:43]} Rg4 {[%emt 0:00:14]} 61. Rf3 {[%emt 0:00:29]} Kd6 {[%emt 0:02:32]} 62. Kd2 {[%emt 0:01:16]} Ke5 {[%emt 0:00:34]} 63. Ke2 {[%emt 0:03:27]} Ke6 {[%emt 0:00:45]} 64. Rc3 {[%emt 0:00:48]} Kd6 {[%emt 0:00:43]} 65. Rf3 {[%emt 0:00:55]} Ke6 {[%emt 0:00:08]} 66. Kd2 {[%emt 0:00:06]} Kd6 {[%emt 0:00:20]} 67. Rd3+ {[%emt 0:00:03]} Kc6 {[%emt 0:00:38]} 68. Rf3 {[%emt 0:01:42]} Kd6 {[%emt 0:00:05]} 69. Ke1 {[%emt 0:00:27]} Ke5 {[%emt 0:00:45]} 70. Rd3 {[%emt 0:00:07]} f4 {[%emt 0:00:49]} 71. gxf4+ {[%emt 0:00:03]} Rxf4 {[%emt 0:00:05]} 72. Kd2 {[%emt 0:00:06]} Ke6 {[%emt 0:00:57]} 73. Kc3 {[%emt 0:00:07]} Rh4 {[%emt 0:00:31]} 74. Rd4 {[%emt 0:00:32]} Rh8 {[%emt 0:03:25]} 75. Kc4 {[%emt 0:00:20]} Rb8 {[%emt 0:00:42]} 76. Kb5 {[%emt 0:00:07]} Ke5 {[%emt 0:00:16]} 77. Rd3 {[%emt 0:00:08]} Ke6 {[%emt 0:00:09]} 78. Kc6 {[%emt 0:00:16] Kd5+} 1-0

[Event "3rd Memorial Warakomska 2019"]
[Site "Suwalki"]
[Date "2019.08.09"]
[Round "6.13"]
[White "Lewtak, Damian"]
[Black "Stupak, Kirill"]
[Result "1/2-1/2"]
[ECO "A06"]
[WhiteElo "2354"]
[BlackElo "2560"]
[Annotator "ChessBase"]
[PlyCount "24"]
[EventDate "2019.08.05"]
[EventType "swiss"]
[EventCountry "POL"]
[SourceTitle "playchess.com"]
[Source "ChessBase"]
[SourceQuality "1"]
[TimeControl "40/5400+30:1800+30"]

1. Nf3 {[%emt 0:00:00]} d5 {[%emt 0:08:27]} 2. g3 {[%emt 0:02:12]} g6 {[%emt 0:00:11]} 3. d4 {[%emt 0:00:30]} Bg7 {[%emt 0:00:13]} 4. Bg2 {[%emt 0:00:06]} e6 {[%emt 0:00:18]} 5. Nbd2 {[%emt 0:04:47]} Nc6 {[%emt 0:09:26]} 6. c3 {[%emt 0:03:20]} f5 {[%emt 0:00:39]} 7. Nb3 {[%emt 0:00:10]} b6 {[%emt 0:03:06]} 8. Bf4 {[%emt 0:03:07]} a5 {[%emt 0:01:34]} 9. Nc1 {[%emt 0:00:34]} Nh6 {[%emt 0:01:20]} 10. Nd3 {[%emt 0:10:09]} Nf7 {[%emt 0:00:38]} 11. h4 {[%emt 0:00:15]} O-O {[%emt 0:00:42]} 12. Ng5 {[%emt 0:01:55]} h6 {[%emt 0:15:30]} 1/2-1/2

[Event "3rd Memorial Warakomska 2019"]
[Site "Suwalki"]
[Date "2019.08.09"]
[Round "6.14"]
[White "Czarnota, Pawel"]
[Black "Kowalski, Igor"]
[Result "1/2-1/2"]
[ECO "B34"]
[WhiteElo "2534"]
[BlackElo "2320"]
[Annotator "ChessBase"]
[PlyCount "34"]
[EventDate "2019.08.05"]
[EventType "swiss"]
[EventCountry "POL"]
[SourceTitle "playchess.com"]
[Source "ChessBase"]
[SourceQuality "1"]
[TimeControl "40/5400+30:1800+30"]

1. e4 {[%emt 0:00:00]} c5 {[%emt 0:00:00]} 2. Nf3 {[%emt 0:00:17]} Nc6 {[%emt 0:00:00]} 3. d4 {[%emt 0:02:18]} cxd4 {[%emt 0:00:00]} 4. Nxd4 {[%emt 0:00:05]} Nf6 {[%emt 0:00:00]} 5. Nc3 {[%emt 0:00:07]} e5 {[%emt 0:00:00]} 6. Ndb5 {[%emt 0:00:07]} d6 {[%emt 0:00:05]} 7. Nd5 {[%emt 0:00:06]} Nxd5 {[%emt 0:00:05]} 8. exd5 {[%emt 0:00:08]} Nb8 {[%emt 0:00:02]} 9. a4 {[%emt 0:00:28]} Be7 {[%emt 0:00:55]} 10. Be2 {[%emt 0:00:06]} O-O {[%emt 0:00:41]} 11. O-O {[%emt 0:00:11]} a6 {[%emt 0:01:10]} 12. Na3 {[%emt 0:00:57]} f5 {[%emt 0:04:34]} 13. Nc4 {[%emt 0:03:12]} f4 {[%emt 0:00:57]} 14. a5 {[%emt 0:04:04]} Nd7 {[%emt 0:01:24]} 15. Re1 {[%emt 0:19:41]} Rb8 {[%emt 0:16:02]} 16. b4 {[%emt 0:08:38]} Rf6 {[%emt 0:08:59]} 17. Ra3 {[%emt 0:14:20]} Rh6 {[%emt 0:02:47]} 1/2-1/2

[Event "3rd Memorial Warakomska 2019"]
[Site "Suwalki"]
[Date "2019.08.09"]
[Round "6.15"]
[White "Jakubowski, Krzysztof"]
[Black "Zylka, Stanislaw"]
[Result "1-0"]
[ECO "A05"]
[WhiteElo "2528"]
[BlackElo "2308"]
[Annotator "ChessBase"]
[PlyCount "131"]
[EventDate "2019.08.05"]
[EventType "swiss"]
[EventCountry "POL"]
[SourceTitle "playchess.com"]
[Source "ChessBase"]
[SourceQuality "1"]
[TimeControl "40/5400+30:1800+30"]

1. Nf3 {[%emt 0:00:00]} Nf6 {[%emt 0:00:00]} 2. b3 {[%emt 0:00:00]} g6 {[%emt 0:00:00]} 3. Bb2 {[%emt 0:00:00]} Bg7 {[%emt 0:00:12]} 4. c4 {[%emt 0:00:10]} O-O {[%emt 0:00:40]} 5. d4 {[%emt 0:00:13]} d6 {[%emt 0:01:09]} 6. Nc3 {[%emt 0:00:44]} Nbd7 {[%emt 0:01:02]} 7. e3 {[%emt 0:01:19]} e5 {[%emt 0:04:40]} 8. Be2 {[%emt 0:02:06]} Re8 {[%emt 0:00:53]} 9. h3 {[%emt 0:00:38]} c6 {[%emt 0:02:17]} 10. Qc2 {[%emt 0:02:24]} a6 {[%emt 0:01:14]} 11. a4 {[%emt 0:01:32]} a5 {[%emt 0:00:31]} 12. Ba3 {[%emt 0:01:13]} exd4 {[%emt 0:02:32]} 13. exd4 {[%emt 0:01:27]} d5 {[%emt 0:00:54]} 14. O-O {[%emt 0:07:42]} Nf8 {[%emt 0:04:43]} 15. Bd3 {[%emt 0:06:52]} Ne6 {[%emt 0:01:29]} 16. Ne2 {[%emt 0:00:34]} Nh5 {[%emt 0:10:45]} 17. Rfe1 {[%emt 0:09:59]} Nhf4 {[%emt 0:03:16]} 18. Nxf4 {[%emt 0:05:34]} Nxf4 {[%emt 0:00:10]} 19. Bf1 {[%emt 0:00:05]} Bf5 {[%emt 0:02:40]} 20. Qd2 {[%emt 0:05:16]} Re4 {[%emt 0:09:29]} 21. Rxe4 {[%emt 0:16:15]} dxe4 {[%emt 0:00:09]} 22. Qxf4 {[%emt 0:00:05]} exf3 {[%emt 0:00:13]} 23. Qxf3 {[%emt 0:11:26]} Qxd4 {[%emt 0:07:40]} 24. Rd1 {[%emt 0:00:12]} Qc3 {[%emt 0:01:11]} 25. Qxc3 {[%emt 0:03:30]} Bxc3 {[%emt 0:00:09]} 26. g4 {[%emt 0:00:04]} Be6 {[%emt 0:00:13]} 27. Bc5 {[%emt 0:01:13]} Re8 {[%emt 0:04:34]} 28. f4 {[%emt 0:04:15]} f6 {[%emt 0:01:49]} 29. Kf2 {[%emt 0:00:58]} Kf7 {[%emt 0:12:58]} 30. Bd3 {[%emt 0:01:38]} f5 {[%emt 0:01:31]} 31. gxf5 {[%emt 0:00:20]} gxf5 {[%emt 0:00:07]} 32. Be2 {[%emt 0:00:13]} Rc8 {[%emt 0:04:58]} 33. Bb6 {[%emt 0:08:40]} Ke7 {[%emt 0:04:11]} 34. Rd3 {[%emt 0:02:17]} Bb4 {[%emt 0:00:10]} 35. Bd1 {[%emt 0:00:33]} Rg8 {[%emt 0:01:12]} 36. Bc2 {[%emt 0:02:26]} Bd6 {[%emt 0:03:40]} 37. Kf3 {[%emt 0:02:27]} c5 {[%emt 0:00:39]} 38. Bxa5 {[%emt 0:02:15]} Bd7 {[%emt 0:00:15]} 39. Re3+ {[%emt 0:00:36]} Kf7 {[%emt 0:00:07]} 40. Kf2 {[%emt 0:00:00]} Bxf4 {[%emt 0:00:00]} 41. Rf3 {[%emt 0:01:46]} Bc6 {[%emt 0:20:13]} 42. Rxf4 {[%emt 0:00:31]} Rg2+ {[%emt 0:00:07]} 43. Ke3 {[%emt 0:11:01]} Rxc2 {[%emt 0:00:07]} 44. Rxf5+ {[%emt 0:00:04]} Ke6 {[%emt 0:00:41]} 45. Rxc5 {[%emt 0:00:28]} Rb2 {[%emt 0:00:13]} 46. b4 {[%emt 0:00:20]} Rb3+ {[%emt 0:00:12]} 47. Kd4 {[%emt 0:00:07]} Rxh3 {[%emt 0:00:15]} 48. Re5+ {[%emt 0:00:10]} Kd6 {[%emt 0:02:05]} 49. c5+ {[%emt 0:00:23]} Kd7 {[%emt 0:00:32]} 50. b5 {[%emt 0:00:07]} Rh4+ {[%emt 0:00:04]} 51. Kc3 {[%emt 0:00:14]} Bg2 {[%emt 0:06:58]} 52. Bb4 {[%emt 0:02:17]} Rh3+ {[%emt 0:00:31]} 53. Kb2 {[%emt 0:01:26]} h5 {[%emt 0:02:47]} 54. a5 {[%emt 0:06:02]} h4 {[%emt 0:01:59]} 55. c6+ {[%emt 0:03:18]} bxc6 {[%emt 0:00:08]} 56. b6 {[%emt 0:00:39]} c5 {[%emt 0:01:04]} 57. Rxc5 {[%emt 0:00:52]} Bc6 {[%emt 0:01:25]} 58. a6 {[%emt 0:01:30]} Rh2+ {[%emt 0:04:38]} 59. Kc3 {[%emt 0:01:13]} Rh3+ {[%emt 0:00:25]} 60. Kc4 {[%emt 0:00:59]} Rg3 {[%emt 0:00:56]} 61. Rh5 {[%emt 0:00:54]} h3 {[%emt 0:02:23]} 62. Rh7+ {[%emt 0:00:33]} Ke6 {[%emt 0:00:32]} 63. Rh6+ {[%emt 0:00:28]} Kf5 {[%emt 0:01:43]} 64. Rxc6 {[%emt 0:00:16]} Rg4+ {[%emt 0:00:31]} 65. Kb5 {[%emt 0:00:06]} h2 {[%emt 0:00:12]} 66. Rh6 {[%emt 0:00:08]} 1-0

[Event "3rd Memorial Warakomska 2019"]
[Site "Suwalki"]
[Date "2019.08.09"]
[Round "6.16"]
[White "Matviishen, Viktor"]
[Black "Ashwath, R.."]
[Result "1-0"]
[ECO "C60"]
[WhiteElo "2495"]
[BlackElo "2365"]
[Annotator "ChessBase"]
[PlyCount "78"]
[EventDate "2019.08.05"]
[EventType "swiss"]
[EventCountry "POL"]
[SourceTitle "playchess.com"]
[Source "ChessBase"]
[SourceQuality "1"]
[TimeControl "40/5400+30:1800+30"]

1. e4 {[%emt 0:00:00]} e5 {[%emt 0:01:04]} 2. Nf3 {[%emt 0:00:00]} Nc6 {[%emt 0:00:03]} 3. Bb5 {[%emt 0:00:00]} g6 {[%emt 0:00:13]} 4. c3 {[%emt 0:00:14]} a6 {[%emt 0:00:29]} 5. Ba4 {[%emt 0:00:13]} Bg7 {[%emt 0:00:32]} 6. d4 {[%emt 0:00:08]} b5 {[%emt 0:02:24]} 7. Bb3 {[%emt 0:00:07]} exd4 {[%emt 0:01:26]} 8. cxd4 {[%emt 0:00:32]} d6 {[%emt 0:00:59]} 9. Ng5 {[%emt 0:03:44]} Nh6 {[%emt 0:06:25]} 10. Bd5 {[%emt 0:04:33]} Bd7 {[%emt 0:07:45]} 11. h3 {[%emt 0:00:23]} O-O {[%emt 0:03:49]} 12. Nf3 {[%emt 0:00:10]} Rb8 {[%emt 0:06:33]} 13. Bg5 {[%emt 0:02:41]} Qe8 {[%emt 0:02:04]} 14. O-O {[%emt 0:00:09]} Kh8 {[%emt 0:05:57]} 15. Re1 {[%emt 0:11:32]} Ng8 {[%emt 0:03:09]} 16. Nc3 {[%emt 0:01:27]} h6 {[%emt 0:08:59]} 17. Bf4 {[%emt 0:01:53]} Qd8 {[%emt 0:03:01]} 18. Rc1 {[%emt 0:03:33]} g5 {[%emt 0:14:17]} 19. Bh2 {[%emt 0:01:26]} Nce7 {[%emt 0:00:34]} 20. Bb3 {[%emt 0:01:08]} a5 {[%emt 0:02:59]} 21. e5 {[%emt 0:01:57]} Bf5 {[%emt 0:01:30]} 22. d5 {[%emt 0:04:21]} dxe5 {[%emt 0:07:13]} 23. Nxe5 {[%emt 0:02:31]} a4 {[%emt 0:02:26]} 24. Bc2 {[%emt 0:01:19]} Bxc2 {[%emt 0:05:19]} 25. Rxc2 {[%emt 0:01:33]} b4 {[%emt 0:00:35]} 26. Nxa4 {[%emt 0:00:26]} Qxd5 {[%emt 0:00:20]} 27. Rd2 {[%emt 0:05:01]} Qa5 {[%emt 0:02:55]} 28. Nd7 {[%emt 0:00:09]} b3 {[%emt 0:01:17]} 29. Nxb8 {[%emt 0:03:52]} bxa2 {[%emt 0:04:22]} 30. b4 {[%emt 0:00:16]} Qxb4 {[%emt 0:00:33]} 31. Rxa2 {[%emt 0:00:10]} Qxb8 {[%emt 0:03:48]} 32. Be5 {[%emt 0:01:13]} f6 {[%emt 0:01:46]} 33. Ba1 {[%emt 0:01:11]} Ng6 {[%emt 0:00:35]} 34. Nc5 {[%emt 0:02:36]} Qb4 {[%emt 0:01:07]} 35. Ne6 {[%emt 0:00:27]} Re8 {[%emt 0:00:07]} 36. Rae2 {[%emt 0:00:16]} Qb7 {[%emt 0:00:43]} 37. Nc5 {[%emt 0:01:07]} Qc6 {[%emt 0:00:38]} 38. Rxe8 {[%emt 0:00:07]} Nh4 {[%emt 0:00:31]} 39. R1e4 {[%emt 0:02:18]} f5 1-0